fUSD/lending_fUSD_20251009
["ID","MTS","AMOUNT","RATE_DAILY","PERIOD"]
[390120001,1759969834255,-500.0,0.00026978,2]
[390120002,1759969834264,-500.0,0.00026978,2]
[390120003,1759969834273,-500.0,0.00026978,2]
[390120004,1759969834283,-500.0,0.00026978,2]
[390120005,1759969834294,-523.05514854,0.00026978,2]
[390120006,1759969834303,-500.0,0.00026978,2]
[390120007,1759969834312,-506.70664256,0.00026978,2]
[390120008,1759969834322,-500.0,0.00026978,2]
[390120009,1759969834331,-571.22,0.00026978,2]
[390120010,1759969834340,-151.0,0.00026978,7]
[390120011,1759969834349,-151.0,0.00026978,7]
[390120012,1759969834359,-500.0,0.00026978,2]
[390120013,1759969834369,-151.0,0.00026978,7]
[390120014,1759969834378,-500.0,0.00026978,2]
[390120015,1759969834387,-151.0,0.00026978,7]
[390120016,1759969834397,-151.0,0.00026978,7]
[390120017,1759969834406,-151.0,0.00026978,7]
[390120018,1759969834415,-151.0,0.00026978,7]
[390120019,1759969834424,-500.0,0.00026978,2]
[390120020,1759969834433,-500.0,0.00026978,2]
[390120021,1759969834442,-808.68,0.00026978,2]
[390120022,1759969834452,-828.39,0.00026978,2]
[390120023,1759969834462,-500.0,0.00026978,2]
[390120024,1759969834471,-500.0,0.00026978,2]
[390120025,1759969834480,-3477.84,0.00026978,2]
[390120026,1759969834489,-500.0,0.00026978,2]
[390120027,1759969834499,-500.0,0.00026978,2]
[390120028,1759969834508,-151.0,0.00026978,7]
[390120029,1759969834517,-500.0,0.00026978,2]
[390120030,1759969834527,-614.06,0.00026978,2]
[390120031,1759969834535,-151.0,0.00026978,7]
[390120032,1759969834545,-151.0,0.00026978,7]
[390120033,1759969834554,-500.0,0.00026979,2]
[390120034,1759969834563,-500.0,0.00026979,2]
[390120035,1759969834572,-500.0,0.00026979,2]
[390120036,1759969834582,-500.0,0.00026979,2]
[390120037,1759969834591,-603.82,0.00026979,2]
[390120038,1759969834602,-309.49,0.00026979,2]
[390120039,1759969834611,-500.0,0.00026979,2]
[390120040,1759969834621,-170.26,0.00026979,2]
[390120041,1759969834631,-500.0,0.00026979,2]
[390120042,1759969834641,-151.0,0.00026979,7]
[390120043,1759969834652,-872.17,0.00026979,2]
[390120044,1759969834661,-500.0,0.00026979,2]
[390120045,1759969834670,-228.971567,0.00026979,7]
[390120046,1759969834679,-228.971567,0.00026979,7]
[390120047,1759969834689,-228.971567,0.00026979,7]
[390120048,1759969834699,-500.0,0.00026979,2]
[390120049,1759969834709,-373.96425583,0.00026979,2]
[390120050,1759969834719,-500.0,0.00026979,2]
[390120051,1759969834729,-500.0,0.00026979,2]
[390120052,1759969834740,-500.0,0.00026979,2]
[390120053,1759969834750,-500.0,0.00026979,2]
[390120054,1759969834759,-500.0,0.00026979,2]
[390120055,1759969834769,-1846.22173,0.00026979,2]
[390120056,1759969834780,-500.0,0.00026979,2]
[390120057,1759969834790,-500.0,0.00026979,2]
[390120058,1759969834799,-500.0,0.00026979,2]
[390120059,1759969834809,-500.0,0.00026979,2]
[390120060,1759969834820,-542.04663608,0.00026979,2]
[390120061,1759969834830,-5000.0,0.00027,2]
[390120062,1759969834839,-5000.0,0.00027,2]
[390120063,1759969834849,-5048.0,0.00027,2]
[390120064,1759969834861,-234.90174,0.00027,7]
[390120065,1759969834871,-501.82236611,0.00027034,3]
[390120066,1759969834880,-501.82236611,0.00027034,3]
[390120067,1759969834890,-501.82236611,0.0002704,3]
[390120068,1759969834900,-1505.46709833,0.00027041,3]
[390120069,1759969834909,-501.82236611,0.00027042,3]
[390120070,1759969834922,-501.82236611,0.00027043,3]
[390120071,1759969834932,-228.971567,0.00027044,7]
[390120072,1759969834941,-228.971567,0.00027044,7]
[390120073,1759969834951,-228.971567,0.00027044,7]
[390120074,1759969834963,-151.0,0.00027044,7]
[390120075,1759969834972,-151.0,0.00027044,7]
[390120076,1759969834982,-151.0,0.00027044,7]
[390120077,1759969834992,-151.0,0.00027044,7]
[390120078,1759969835003,-151.0,0.00027044,7]
[390120079,1759969835013,-151.0,0.00027044,7]
[390120080,1759969835022,-151.0,0.00027044,7]
[390120081,1759969835031,-151.0,0.00027044,7]
[390120082,1759969835041,-151.0,0.00027044,7]
[390120083,1759969835050,-151.0,0.00027044,7]
[390120084,1759969835060,-151.0,0.00027044,2]
[390120085,1759969835070,-151.0,0.00027045,7]
[390120086,1759969835080,-151.0,0.00027045,7]
[390120087,1759969835090,-151.0,0.00027045,7]
[390120088,1759969835099,-151.0,0.00027045,7]
[390120089,1759969835109,-651.0,0.00027046,2]
[390120090,1759969835118,-202.58913805,0.0002705,2]
[390120091,1759969835128,-500.0,0.0002705,2]
[390120092,1759969835138,-500.0,0.0002705,2]
[390120093,1759969835147,-500.0,0.0002705,2]
[390120094,1759969835156,-531.65,0.0002705,2]
[390120095,1759969835165,-934.58,0.0002705,2]
[390120096,1759969835174,-500.0,0.0002705,2]
[390120097,1759969835184,-500.0,0.0002705,2]
[390120098,1759969835193,-500.0,0.0002705,2]
[390120099,1759969835202,-500.0,0.0002705,2]
[390120100,1759969835212,-500.0,0.0002705,2]
[390120101,1759969835221,-500.0,0.0002705,2]
[390120102,1759969835230,-500.0,0.0002705,2]
[390120103,1759969835240,-500.0,0.0002705,2]
[390120104,1759969835249,-500.0,0.00027051,2]
[390120105,1759969835259,-1690.62,0.00027051,2]
[390120106,1759969835268,-500.0,0.00027051,2]
[390120107,1759969835277,-341.68,0.00027051,2]
[390120108,1759969835287,-500.0,0.00027051,2]
[390120109,1759969835296,-500.0,0.00027051,2]
[390120110,1759969835305,-500.0,0.00027051,2]
[390120111,1759969835315,-500.0,0.00027051,2]
[390120112,1759969835324,-500.0,0.00027051,2]
[390120113,1759969835333,-500.0,0.00027051,2]
[390120114,1759969835342,-500.0,0.00027051,2]
[390120115,1759969835352,-500.0,0.00027051,2]
[390120116,1759969835361,-500.0,0.00027051,2]
[390120117,1759969835370,-500.0,0.00027051,2]
[390120118,1759969835379,-500.0,0.00027051,2]
[390120119,1759969835389,-500.0,0.00027051,2]
[390120120,1759969835398,-500.0,0.00027051,2]
[390120121,1759969835407,-500.0,0.00027051,2]
[390120122,1759969835417,-500.0,0.00027051,2]
[390120123,1759969835425,-500.0,0.00027051,2]
[390120124,1759969835434,-500.0,0.00027051,2]
[390120125,1759969835444,-500.0,0.00027051,2]
[390120126,1759969835453,-500.0,0.00027051,2]
[390120127,1759969835462,-500.0,0.00027051,2]
[390120128,1759969835472,-502.02169768,0.00027051,2]
[390120129,1759969835481,-500.0,0.00027051,2]
[390120130,1759969835490,-500.0,0.00027051,2]
[390120131,1759969835501,-500.0,0.00027051,2]
[390120132,1759969835511,-500.0,0.00027051,2]
[390120133,1759969835520,-500.0,0.00027051,2]
[390120134,1759969835529,-500.0,0.00027051,2]
[390120135,1759969835538,-151.0,0.00027051,7]
[390120136,1759969835547,-501.27658763,0.00027051,2]
[390120137,1759969835556,-500.0,0.00027051,2]
[390120138,1759969835565,-500.0,0.00027051,2]
[390120139,1759969835575,-500.0,0.00027051,2]
[390120140,1759969835584,-500.0,0.00027051,2]
[390120141,1759969835593,-500.0,0.00027051,2]
[390120142,1759969835602,-500.0,0.00027051,2]
[390120143,1759969835611,-500.0,0.00027051,2]
[390120144,1759969835620,-500.0,0.00027051,2]
[390120145,1759969835629,-500.0,0.00027051,2]
[390120146,1759969835639,-500.0,0.00027051,2]
[390120147,1759969835648,-500.0,0.00027051,2]
[390120148,1759969835658,-500.0,0.00027051,2]
[390120149,1759969835667,-500.0,0.00027051,2]
[390120150,1759969835677,-500.0,0.00027051,2]
[390120151,1759969835686,-500.0,0.00027051,2]
[390120152,1759969835696,-500.0,0.00027051,2]
[390120153,1759969835706,-500.0,0.00027051,2]
[390120154,1759969835717,-500.0,0.00027051,2]
[390120155,1759969835727,-500.0,0.00027051,2]
[390120156,1759969835736,-500.0,0.00027051,2]
[390120157,1759969835746,-500.0,0.00027051,2]
[390120158,1759969835757,-500.0,0.00027051,2]
[390120159,1759969835768,-500.0,0.00027051,2]
[390120160,1759969835777,-211.49643414,0.00027051,2]
[390120161,1759969835787,-500.0,0.00027051,2]
[390120162,1759969835798,-269.27221399,0.00027051,2]
[390120163,1759969835808,-151.0,0.00027051,7]
[390120164,1759969835818,-500.0,0.00027051,2]
[390120165,1759969835828,-500.0,0.00027051,2]
[390120166,1759969835838,-500.0,0.00027051,2]
[390120167,1759969835848,-500.0,0.00027051,2]
[390120168,1759969835858,-500.0,0.00027051,2]
[390120169,1759969835867,-500.0,0.00027051,2]
[390120170,1759969835877,-500.0,0.00027051,2]
[390120171,1759969835887,-588.95,0.00027051,2]
[390120172,1759969835897,-500.0,0.00027051,2]
[390120173,1759969835907,-500.0,0.00027051,2]
[390120174,1759969835921,-500.0,0.00027051,2]
[390120175,1759969835934,-500.0,0.00027051,2]
[390120176,1759969835944,-228.971567,0.00027051,7]
[390120177,1759969835955,-500.0,0.00027051,2]
[390120178,1759969835965,-228.971567,0.00027051,7]
[390120179,1759969835975,-228.971567,0.00027051,7]
[390120180,1759969835984,-500.0,0.00027051,2]
[390120181,1759969835995,-500.0,0.00027051,15]
[390120182,1759969836005,-551.39690193,0.00027051,2]
[390120183,1759969836015,-500.0,0.00027051,2]
[390120184,1759969836024,-502.29875904,0.00027051,2]
[390120185,1759969836034,-500.60707938,0.00027051,2]
[390120186,1759969836043,-500.0,0.00027051,2]
[390120187,1759969836053,-500.0,0.00027051,2]
[390120188,1759969836063,-153.56811623,0.00027051,2]
[390120189,1759969836073,-500.0,0.00027051,2]
[390120190,1759969836083,-1055.04,0.00027051,2]
[390120191,1759969836093,-500.0,0.00027051,2]
[390120192,1759969836103,-500.0,0.00027051,2]
[390120193,1759969836113,-500.0,0.00027051,2]
[390120194,1759969836122,-376.21432485,0.00027051,2]
[390120195,1759969836132,-500.0,0.00027051,2]
[390120196,1759969836141,-500.0,0.00027051,2]
[390120197,1759969836150,-773.15,0.00027051,2]
[390120198,1759969836159,-500.0,0.00027051,2]
[390120199,1759969836168,-500.0,0.00027051,2]
[390120200,1759969836177,-500.0,0.00027051,2]
[390120201,1759969836186,-500.0,0.00027051,2]
[390120202,1759969836196,-500.0,0.00027051,2]
[390120203,1759969836206,-500.0,0.00027051,2]
[390120204,1759969836216,-500.0,0.00027051,2]
[390120205,1759969836225,-500.0,0.00027051,2]
[390120206,1759969836235,-500.0,0.00027051,2]
[390120207,1759969836244,-500.0,0.00027051,2]
[390120208,1759969836254,-500.0,0.00027051,2]
[390120209,1759969836263,-1500.0,0.00027051,2]
[390120210,1759969836273,-500.0,0.00027051,2]
[390120211,1759969836283,-500.0,0.00027051,2]
[390120212,1759969836292,-500.0,0.00027051,2]
[390120213,1759969836301,-500.0,0.00027051,2]
[390120214,1759969836311,-500.0,0.00027051,2]
[390120215,1759969836320,-501.29389148,0.00027051,2]
[390120216,1759969836328,-500.0,0.00027051,2]
[390120217,1759969836338,-500.0,0.00027051,2]
[390120218,1759969836347,-500.0,0.00027051,2]
[390120219,1759969836356,-151.0,0.00027051,7]
[390120220,1759969836365,-500.0,0.00027051,2]
[390120221,1759969836374,-151.0,0.00027051,7]
[390120222,1759969836383,-500.0,0.00027051,2]
[390120223,1759969836393,-500.0,0.00027051,2]
[390120224,1759969836402,-151.0,0.00027051,7]
[390120225,1759969836411,-151.0,0.00027051,7]
[390120226,1759969836420,-500.0,0.00027051,2]
[390120227,1759969836430,-500.0,0.00027051,2]
[390120228,1759969836439,-500.0,0.00027051,2]
[390120229,1759969836448,-500.0,0.00027051,2]
[390120230,1759969836462,-500.0,0.00027051,2]
[390120231,1759969836472,-500.0,0.00027051,2]
[390120232,1759969836484,-500.0,0.00027051,2]
[390120233,1759969836494,-500.0,0.00027051,2]
[390120234,1759969836504,-500.0,0.00027051,2]
[390120235,1759969836513,-500.0,0.00027051,2]
[390120236,1759969836523,-500.0,0.00027051,2]
[390120237,1759969836532,-500.0,0.00027051,2]
[390120238,1759969836542,-500.0,0.00027051,2]
[390120239,1759969836551,-500.0,0.00027051,2]
[390120240,1759969836560,-500.0,0.00027051,2]
[390120241,1759969836569,-500.0,0.00027051,2]
[390120242,1759969836579,-500.0,0.00027051,2]
[390120243,1759969836588,-500.0,0.00027051,2]
[390120244,1759969836598,-502.80826663,0.00027051,2]
[390120245,1759969836607,-600.0,0.00027051,2]
[390120246,1759969836616,-500.0,0.00027051,2]
[390120247,1759969836625,-500.0,0.00027051,2]
[390120248,1759969836635,-500.0,0.00027051,2]
[390120249,1759969836644,-500.0,0.00027051,2]
[390120250,1759969836654,-500.0,0.00027051,2]
[390120251,1759969836664,-571.98,0.00027051,2]
[390120252,1759969836674,-401.16988901,0.00027051,2]
[390120253,1759969836684,-500.0,0.00027051,2]
[390120254,1759969836693,-500.0,0.00027051,2]
[390120255,1759969836702,-500.0,0.00027051,2]
[390120256,1759969836712,-500.0,0.00027051,2]
[390120257,1759969836721,-500.0,0.00027051,2]
[390120258,1759969836731,-500.0,0.00027051,2]
[390120259,1759969836740,-500.0,0.00027051,2]
[390120260,1759969836749,-314.98550527,0.00027051,2]
[390120261,1759969836758,-500.0,0.00027051,2]
[390120262,1759969836767,-500.0,0.00027051,2]
[390120263,1759969836776,-501.96598324,0.00027051,2]
[390120264,1759969836785,-500.0,0.00027051,2]
[390120265,1759969836794,-500.0,0.00027051,2]
[390120266,1759969836803,-500.0,0.00027051,2]
[390120267,1759969836813,-500.0,0.00027051,2]
[390120268,1759969836822,-500.0,0.00027051,2]
[390120269,1759969836831,-500.0,0.00027051,2]
[390120270,1759969836841,-500.0,0.00027051,2]
[390120271,1759969836852,-500.0,0.00027051,2]
[390120272,1759969836862,-613.9626341,0.00027051,2]
[390120273,1759969836871,-500.0,0.00027051,2]
[390120274,1759969836880,-500.0,0.00027051,2]
[390120275,1759969836900,-500.0,0.00027051,2]
[390120276,1759969836910,-151.0,0.00027051,7]
[390120277,1759969836924,-1000.0,0.00027051,2]
[390120278,1759969836935,-151.0,0.00027051,7]
[390120279,1759969836944,-500.0,0.00027051,2]
[390120280,1759969836954,-151.0,0.00027052,7]
[390120281,1759969836966,-252.998062,0.00027052,7]
[390120282,1759969836976,-151.0,0.00027052,7]
[390120283,1759969836985,-151.0,0.00027052,7]
[390120284,1759969836997,-151.0,0.00027052,7]
[390120285,1759969837007,-168.401504,0.00027052,7]
[390120286,1759969837016,-151.0,0.00027052,7]
[390120287,1759969837025,-151.0,0.00027052,7]
[390120288,1759969837034,-151.0,0.00027052,7]
[390120289,1759969837044,-168.367498,0.00027052,7]
[390120290,1759969837053,-211.427072,0.00027052,7]
[390120291,1759969837063,-151.0,0.00027052,7]
[390120292,1759969837072,-151.0,0.00027052,7]
[390120293,1759969837082,-500.0,0.00027053,2]
[390120294,1759969837091,-500.0,0.00027053,2]
[390120295,1759969837101,-500.0,0.00027053,2]
[390120296,1759969837111,-500.0,0.00027053,2]
[390120297,1759969837120,-500.0,0.00027053,2]
[390120298,1759969837130,-500.0,0.00027053,2]
[390120299,1759969837139,-500.0,0.00027053,2]
[390120300,1759969837149,-500.0,0.00027053,2]
[390120301,1759969837158,-500.0,0.00027053,2]
[390120302,1759969837168,-500.0,0.00027053,2]
[390120303,1759969837178,-500.0,0.00027053,2]
[390120304,1759969837188,-500.0,0.00027053,2]
[390120305,1759969837198,-500.0,0.00027053,2]
[390120306,1759969837210,-500.0,0.00027053,2]
[390120307,1759969837219,-500.0,0.00027054,2]
[390120308,1759969837229,-500.0,0.00027054,2]
[390120309,1759969837239,-500.0,0.00027054,2]
[390120310,1759969837249,-500.0,0.00027054,2]
[390120311,1759969837259,-500.0,0.00027054,2]
[390120312,1759969837268,-592.78,0.00027054,2]
[390120313,1759969837278,-500.0,0.00027054,2]
[390120314,1759969837287,-500.0,0.00027054,2]
[390120315,1759969837301,-500.0,0.00027054,2]
[390120316,1759969837310,-500.0,0.00027054,2]
[390120318,1759969837320,-500.0,0.00027054,2]
[390120320,1759969837330,-507.45,0.00027054,2]
[390120321,1759969837339,-1064.62,0.00027054,2]
[390120322,1759969837349,-151.0,0.00027054,7]
[390120323,1759969837358,-500.0,0.00027054,2]
[390120324,1759969837368,-500.0,0.00027054,2]
[390120325,1759969837377,-500.0,0.00027054,2]
[390120326,1759969837388,-249.801673,0.00027054,7]
[390120327,1759969837398,-151.0,0.00027054,7]
[390120328,1759969837407,-424.43363464,0.00027054,2]
[390120329,1759969837417,-151.0,0.00027054,7]
[390120330,1759969837427,-151.0,0.00027054,7]
[390120331,1759969837437,-168.03,0.00027058,2]
[390120332,1759969837447,-862.61603669,0.00027058,2]
[390120333,1759969837458,-501.82236611,0.00027058,3]
[390120334,1759969837468,-151.0,0.00027062,7]
[390120335,1759969837477,-167.76,0.00027068,2]
[390120336,1759969837487,-825.3,0.00027068,2]
[390120337,1759969837496,-1198.2,0.00027068,2]
[390120338,1759969837506,-175.79,0.00027068,2]
[390120339,1759969837516,-168.0,0.00027068,2]
[390120340,1759969837733,-150.0,0.00027068,2]
[390120341,1759969837762,-413.05,0.00027068,2]
[390120342,1759969837771,-545.91,0.00027068,2]
[390120343,1759969837781,-351.51,0.00027068,2]
[390120344,1759969837791,-175.58,0.00027068,2]
[390120346,1759969837800,-1846.22174,0.0002707,2]
[390120348,1759969837809,-500.0,0.00027073,2]
[390120350,1759969837818,-501.41003828,0.00027073,2]
[390120351,1759969837828,-607.7608945,0.0002708,2]
[390120352,1759969837837,-274.25,0.000271,2]
[390120353,1759969837846,-258.053266,0.000271,2]
[390120355,1759969837856,-1000.0,0.00027136,2]
[390120356,1759969837865,-501.82236611,0.00027143,3]
[390120358,1759969837874,-228.971567,0.00027153,7]
[390120360,1759969837884,-228.971567,0.00027153,7]
[390120362,1759969837893,-228.971567,0.00027153,7]
[390120364,1759969837903,-1003.64473222,0.00027153,3]
[390120367,1759969837914,-500.0,0.00027162,2]
[390120369,1759969837930,-500.0,0.00027163,2]
[390120371,1759969837940,-573.81,0.00027163,2]
[390120373,1759969837950,-500.0,0.00027163,2]
[390120376,1759969837962,-500.0,0.00027163,2]
[390120379,1759969837971,-500.0,0.00027163,2]
[390120381,1759969837980,-402.92374462,0.00027163,2]
[390120383,1759969837991,-500.0,0.00027163,2]
[390120385,1759969838001,-500.0,0.00027163,2]
[390120387,1759969838010,-500.0,0.00027163,2]
[390120389,1759969838019,-500.0,0.00027163,2]
[390120391,1759969838029,-500.0,0.00027163,2]
[390120393,1759969838038,-500.0,0.00027163,2]
[390120395,1759969838047,-500.0,0.00027163,2]
[390120397,1759969838058,-500.0,0.00027163,2]
[390120399,1759969838067,-504.88389609,0.00027163,2]
[390120401,1759969838076,-500.0,0.00027163,2]
[390120403,1759969838086,-500.0,0.00027163,2]
[390120405,1759969838095,-500.0,0.00027163,2]
[390120407,1759969838105,-500.0,0.00027163,2]
[390120409,1759969838115,-500.0,0.00027163,2]
[390120411,1759969838124,-500.0,0.00027163,2]
[390120413,1759969838133,-500.0,0.00027163,2]
[390120415,1759969838142,-500.0,0.00027163,2]
[390120417,1759969838151,-500.0,0.00027163,2]
[390120419,1759969838163,-500.0,0.00027163,2]
[390120421,1759969838173,-500.0,0.00027163,2]
[390120423,1759969838183,-500.0,0.00027163,2]
[390120425,1759969838193,-500.0,0.00027163,2]
[390120427,1759969838203,-561.89672378,0.00027163,2]
[390120429,1759969838213,-500.0,0.00027163,2]
[390120431,1759969838223,-195.80001048,0.00027163,2]
[390120433,1759969838233,-500.0,0.00027163,2]
[390120435,1759969838243,-500.0,0.00027163,2]
[390120437,1759969838252,-500.0,0.00027163,2]
[390120439,1759969838262,-500.0,0.00027163,2]
[390120441,1759969838272,-500.0,0.00027163,2]
[390120443,1759969838282,-500.0,0.00027163,2]
[390120445,1759969838292,-500.0,0.00027163,2]
[390120447,1759969838302,-500.0,0.00027163,2]
[390120449,1759969838312,-500.0,0.00027163,2]
[390120451,1759969838321,-500.0,0.00027163,2]
[390120453,1759969838331,-168.19129142,0.00027163,2]
[390120455,1759969838340,-500.0,0.00027163,2]
[390120457,1759969838351,-500.0,0.00027163,2]
[390120459,1759969838361,-371.2139426,0.00027163,2]
[390120461,1759969838370,-298.39872593,0.00027163,2]
[390120463,1759969838380,-500.0,0.00027163,2]
[390120465,1759969838390,-500.0,0.00027163,2]
[390120467,1759969838400,-500.0,0.00027163,2]
[390120469,1759969838409,-500.0,0.00027163,2]
[390120471,1759969838418,-3816.39629985,0.00027163,2]
[390120494,1759969838635,-3484.37370015,0.00027163,2]
[390120496,1759969838645,-700.3,0.00027163,2]
[390120498,1759969838655,-500.0,0.00027163,2]
[390120500,1759969838664,-500.0,0.00027163,2]
[390120502,1759969838674,-151.0,0.00027163,7]
[390120504,1759969838683,-151.0,0.00027163,7]
[390120506,1759969838694,-500.0,0.00027163,2]
[390120508,1759969838706,-500.0,0.00027163,2]
[390120510,1759969838716,-151.0,0.00027163,7]
[390120512,1759969838725,-500.0,0.00027163,2]
[390120514,1759969838735,-539.99,0.00027163,2]
[390120516,1759969838744,-825.55,0.00027163,2]
[390120518,1759969838753,-151.0,0.00027163,7]
[390120520,1759969838764,-627.38,0.00027163,2]
[390120522,1759969838773,-151.0,0.00027163,7]
[390120524,1759969838783,-151.0,0.00027163,7]
[390120526,1759969838792,-286.064198,0.00027163,7]
[390120528,1759969838802,-500.0,0.00027163,2]
[390120530,1759969838812,-500.0,0.00027163,2]
[390120532,1759969838822,-500.0,0.00027163,2]
[390120534,1759969838831,-500.0,0.00027163,2]
[390120536,1759969838841,-151.0,0.00027163,7]
[390120538,1759969838851,-151.0,0.00027163,7]
[390120540,1759969838860,-500.0,0.00027163,2]
[390120542,1759969838871,-502.43,0.00027163,2]
[390120544,1759969838882,-500.0,0.00027163,2]
[390120546,1759969838892,-300.0,0.00027163,2]
[390120548,1759969838902,-500.0,0.00027163,2]
[390120550,1759969838911,-297.86985127,0.00027164,2]
[390120552,1759969838926,-250.0,0.00027164,2]
[390120554,1759969838936,-150.0,0.00027164,2]
[390120556,1759969838946,-150.0,0.00027164,2]
[390120558,1759969838956,-250.0,0.00027164,2]
[390120560,1759969838967,-202.75692236,0.00027164,2]
[390120562,1759969838977,-150.0,0.00027164,2]
[390120564,1759969838988,-150.0,0.00027164,2]
[390120566,1759969838999,-178.0,0.00027164,2]
[390120569,1759969839013,-150.0,0.00027164,2]
[390120571,1759969839023,-150.0,0.00027164,2]
[390120573,1759969839032,-500.0,0.00027164,2]
[390120575,1759969839042,-150.0,0.00027164,2]
[390120577,1759969839051,-150.0,0.00027164,2]
[390120579,1759969839061,-500.0,0.00027164,2]
[390120580,1759969839072,-150.0,0.00027164,2]
[390120582,1759969839082,-500.0,0.00027164,2]
[390120584,1759969839092,-500.0,0.00027164,2]
[390120585,1759969839103,-1093.33,0.00027164,2]
[390120587,1759969839113,-500.0,0.00027173,2]
[390120589,1759969839123,-500.87860075,0.00027173,2]
[390120591,1759969839133,-1137.38396331,0.00027175,2]
[390120592,1759969839143,-151.0,0.00027183,7]
[390120594,1759969839153,-648.0,0.00027191,7]
[390120596,1759969839164,-5391.3351502,0.00027192,3]
[390120597,1759969839175,-187.367052,0.00027193,7]
[390120599,1759969839185,-228.971567,0.00027193,7]
[390120601,1759969839195,-228.971567,0.00027193,7]
[390120603,1759969839208,-228.971563,0.00027193,7]
[390120604,1759969839218,-151.0,0.00027193,7]
[390120606,1759969839227,-151.0,0.00027193,7]
[390120608,1759969839237,-151.0,0.00027193,7]
[390120610,1759969839247,-151.0,0.00027193,7]
[390120611,1759969839257,-151.0,0.00027193,7]
[390120613,1759969839268,-151.0,0.00027193,7]
[390120615,1759969839278,-500.0,0.00027202,2]
[390120616,1759969839288,-500.0,0.00027202,2]
[390120618,1759969839298,-240.401948,0.00027203,7]
[390120620,1759969839308,-5391.3351502,0.00027233,3]
[390120622,1759969839325,-151.0,0.00027233,7]
[390120625,1759969839341,-155.164851,0.00027233,7]
[390120627,1759969839358,-5391.3351502,0.00027242,3]
[390120629,1759969839372,-5391.3351502,0.00027243,3]
[390120630,1759969839384,-500.0,0.0002725,2]
[390120632,1759969839395,-500.0,0.0002725,2]
[390120634,1759969839406,-500.0,0.0002725,2]
[390120636,1759969839418,-500.0,0.0002725,2]
[390120638,1759969839431,-500.0,0.0002725,2]
[390120640,1759969839447,-500.0,0.0002725,2]
[390120642,1759969839460,-854.8,0.0002725,2]
[390120644,1759969839473,-554.21,0.0002725,2]
[390120646,1759969839486,-500.0,0.0002725,2]
[390120648,1759969839499,-238.77361163,0.0002725,2]
[390120651,1759969839516,-261.22638837,0.0002725,2]
[390120654,1759969839529,-500.0,0.0002725,2]
[390120656,1759969839540,-500.0,0.0002725,2]
[390120659,1759969839552,-500.0,0.0002725,2]
[390120662,1759969839563,-500.0,0.0002725,2]
[390120665,1759969839574,-500.0,0.0002725,2]
[390120668,1759969839587,-500.0,0.0002725,2]
[390120671,1759969839599,-500.0,0.0002725,2]
[390120676,1759969839612,-500.0,0.0002725,2]
[390120679,1759969839623,-500.0,0.00027252,2]
[390120681,1759969839635,-500.0,0.00027252,2]
[390120684,1759969839647,-500.0,0.00027252,2]
[390120688,1759969839660,-500.0,0.00027252,2]